fUST/lending_fUST_20250701
["ID","MTS","AMOUNT","RATE_DAILY","PERIOD"]
[368723153,1751326252991,-460.0,0.00019484,2]
[368723154,1751326253000,-460.0,0.00019484,2]
[368723155,1751326253010,-460.0,0.00019484,2]
[368723156,1751326253020,-460.0,0.00019484,2]
[368723157,1751326253029,-575.6,0.00019484,2]
[368723158,1751326253038,-460.0,0.00019484,2]
[368723159,1751326253048,-460.94739813,0.00019484,2]
[368723160,1751326253059,-460.0,0.00019484,2]
[368723161,1751326253069,-466.33681408,0.00019484,2]
[368723162,1751326253078,-460.0,0.00019484,2]
[368723163,1751326253088,-460.0,0.00019484,2]
[368723164,1751326253097,-460.0,0.00019484,2]
[368723165,1751326253107,-460.0,0.00019484,2]
[368723166,1751326253116,-460.0,0.00019484,2]
[368723167,1751326253125,-460.0,0.00019484,2]
[368723168,1751326253135,-460.0,0.00019484,2]
[368723169,1751326253144,-460.0,0.00019484,2]
[368723170,1751326253154,-460.0,0.00019484,2]
[368723171,1751326253164,-460.0,0.00019485,2]
[368723172,1751326253173,-520.74,0.00019485,2]
[368723173,1751326253183,-460.0,0.00019485,2]
[368723174,1751326253193,-460.0,0.00019519,2]
[368723175,1751326253202,-460.0,0.0001952,2]
[368723176,1751326253212,-460.0,0.0001952,2]
[368723177,1751326253223,-460.0,0.0001952,2]
[368723178,1751326253233,-501.04,0.0001952,2]
[368723179,1751326253242,-656.0,0.0001952,2]
[368723180,1751326253252,-1368.03,0.0001952,2]
[368723181,1751326253262,-460.0,0.0001952,2]
[368723182,1751326253272,-460.0,0.0001952,2]
[368723183,1751326253282,-460.0,0.0001952,2]
[368723184,1751326253291,-460.0,0.0001952,2]
[368723185,1751326253301,-460.0,0.0001952,2]
[368723186,1751326253311,-460.0,0.0001952,2]
[368723187,1751326253320,-507.75,0.0001952,2]
[368723188,1751326253330,-460.0,0.0001952,2]
[368723189,1751326253339,-460.0,0.0001952,2]
[368723190,1751326253350,-460.0,0.0001952,2]
[368723191,1751326253359,-460.0,0.0001952,2]
[368723192,1751326253369,-460.0,0.0001952,2]
[368723193,1751326253379,-460.0,0.0001952,2]
[368723194,1751326253388,-460.0,0.0001952,2]
[368723195,1751326253398,-460.0,0.0001952,2]
[368723196,1751326253407,-460.0,0.0001952,2]
[368723197,1751326253417,-1846.9776302,0.00019521,2]
[368723198,1751326253427,-460.0,0.00019555,2]
[368723199,1751326253437,-460.0,0.00019555,2]
[368723200,1751326253448,-271.8,0.00019555,2]
[368723201,1751326253457,-914.71,0.00019555,2]
[368723202,1751326253468,-460.0,0.00019555,2]
[368723203,1751326253477,-410.48,0.00019555,2]
[368723204,1751326253487,-460.0,0.00019555,2]
[368723205,1751326253496,-460.0,0.00019555,2]
[368723206,1751326253506,-347.84,0.00019555,2]
[368723207,1751326253517,-401.1,0.00019555,2]
[368723208,1751326253527,-460.0,0.00019555,2]
[368723209,1751326253536,-460.0,0.00019555,2]
[368723210,1751326253545,-460.0,0.00019555,2]
[368723211,1751326253555,-460.0,0.00019555,2]
[368723212,1751326253565,-460.0,0.00019555,2]
[368723213,1751326253575,-460.0,0.00019555,2]
[368723214,1751326253584,-460.0,0.00019555,2]
[368723215,1751326253594,-460.0,0.00019555,2]
[368723216,1751326253603,-167.73,0.00019555,2]
[368723217,1751326253613,-460.0,0.00019555,2]
[368723218,1751326253622,-460.0,0.00019557,2]
[368723219,1751326253632,-358.84,0.00019557,2]
[368723220,1751326253642,-460.0,0.00019557,2]
[368723221,1751326253653,-460.0,0.00019557,2]
[368723222,1751326253663,-460.0,0.00019557,2]
[368723223,1751326253673,-460.0,0.00019557,2]
[368723224,1751326253695,-460.0,0.00019557,2]
[368723225,1751326253706,-876.76,0.00019557,2]
[368723226,1751326253716,-487.77,0.00019557,2]
[368723227,1751326253726,-460.0,0.00019557,2]
[368723228,1751326253736,-460.0,0.00019557,2]
[368723229,1751326253746,-469.42,0.00019557,2]
[368723230,1751326253755,-460.0,0.00019557,2]
[368723231,1751326253765,-460.0,0.00019557,2]
[368723232,1751326253776,-1013.34,0.00019557,2]
[368723233,1751326253785,-460.0,0.00019557,2]
[368723234,1751326253795,-460.0,0.00019557,2]
[368723235,1751326253805,-199.28278539,0.00019558,2]
[368723236,1751326253815,-591.63,0.00019558,2]
[368723237,1751326253825,-460.0,0.00019558,2]
[368723238,1751326253835,-797.26,0.00019558,2]
[368723239,1751326253846,-1000.0,0.00019621,2]
[368723240,1751326253858,-1000.0,0.00019621,2]
[368723241,1751326253868,-500.0,0.00019621,2]
[368723242,1751326253878,-220.13705658,0.00019655,2]
[368723243,1751326253888,-460.0,0.00019658,2]
[368723244,1751326253898,-460.0,0.00019658,2]
[368723245,1751326253908,-460.0,0.00019658,2]
[368723246,1751326253921,-460.0,0.00019658,2]
[368723247,1751326253937,-371.97,0.00019658,2]
[368723248,1751326253949,-590.58,0.00019658,2]
[368723249,1751326253959,-396.38,0.00019658,2]
[368723250,1751326253969,-460.0,0.00019658,2]
[368723251,1751326253980,-486.56719486,0.00019658,2]
[368723252,1751326253995,-460.0,0.00019658,2]
[368723253,1751326254004,-153.32,0.00019658,2]
[368723254,1751326254015,-370.44,0.00019658,2]
[368723255,1751326254027,-400.5,0.00019658,2]
[368723256,1751326254038,-460.0,0.00019658,2]
[368723257,1751326254048,-460.0,0.00019658,2]
[368723258,1751326254060,-460.0,0.00019658,2]
[368723259,1751326254071,-277.4737962,0.00019658,2]
[368723260,1751326254081,-460.0,0.00019658,2]
[368723261,1751326254093,-460.0,0.00019658,2]
[368723262,1751326254102,-460.0,0.00019658,2]
[368723263,1751326254112,-460.0,0.00019658,2]
[368723264,1751326254123,-460.0,0.00019658,2]
[368723265,1751326254135,-1846.9776302,0.00019728,2]
[368723266,1751326254146,-719.21559496,0.00019732,2]
[368723267,1751326254155,-1822.70234672,0.00019733,2]
[368723268,1751326254165,-460.0,0.00019756,2]
[368723269,1751326254175,-500.0,0.00019758,2]
[368723270,1751326254185,-460.0,0.00019758,2]
[368723271,1751326254194,-275.20832754,0.00019758,2]
[368723272,1751326254204,-460.0,0.00019758,2]
[368723273,1751326254213,-460.0,0.00019758,2]
[368723274,1751326254223,-460.0,0.00019758,2]
[368723275,1751326254235,-500.0,0.00019758,2]
[368723276,1751326254245,-328.47870235,0.00019758,2]
[368723277,1751326254254,-333.0,0.00019758,2]
[368723278,1751326254264,-384.4,0.00019758,2]
[368723279,1751326254274,-460.0,0.00019758,2]
[368723280,1751326254283,-258.1,0.00019758,2]
[368723281,1751326254293,-460.0,0.00019758,2]
[368723282,1751326254303,-460.0,0.00019758,2]
[368723283,1751326254313,-460.0,0.00019758,2]
[368723284,1751326254323,-460.0,0.00019758,2]
[368723285,1751326254334,-151.0,0.00019789,2]
[368723286,1751326254349,-500.0,0.00019789,2]
[368723287,1751326254365,-460.0,0.00019794,2]
[368723288,1751326254375,-460.0,0.00019794,2]
[368723289,1751326254384,-501.04,0.00019794,2]
[368723290,1751326254394,-656.0,0.00019794,2]
[368723291,1751326254404,-1368.03,0.00019794,2]
[368723292,1751326254414,-460.0,0.00019794,2]
[368723293,1751326254424,-460.0,0.00019794,2]
[368723294,1751326254434,-460.0,0.00019794,2]
[368723295,1751326254443,-460.0,0.00019794,2]
[368723296,1751326254453,-460.0,0.00019794,2]
[368723297,1751326254463,-198.42161831,0.00019794,2]
[368723298,1751326254474,-460.0,0.00019794,2]
[368723299,1751326254485,-460.0,0.00019794,2]
[368723300,1751326254494,-460.0,0.00019794,2]
[368723301,1751326254504,-460.0,0.00019794,2]
[368723302,1751326254514,-460.0,0.00019794,2]
[368723303,1751326254523,-460.0,0.00019794,2]
[368723304,1751326254533,-460.0,0.00019794,2]
[368723305,1751326254543,-500.0,0.00019816,2]
[368723306,1751326254553,-460.0,0.00019829,2]
[368723307,1751326254564,-914.71,0.00019829,2]
[368723308,1751326254575,-460.0,0.00019829,2]
[368723309,1751326254584,-460.0,0.00019829,2]
[368723310,1751326254595,-542.2624772,0.00019829,2]
[368723311,1751326254604,-460.0,0.00019829,2]
[368723312,1751326254614,-460.0,0.00019829,2]
[368723313,1751326254624,-460.0,0.00019829,2]
[368723314,1751326254634,-460.0,0.00019829,2]
[368723315,1751326254643,-460.0,0.00019829,2]
[368723316,1751326254653,-460.0,0.00019829,2]
[368723317,1751326254663,-460.0,0.00019829,2]
[368723318,1751326254673,-460.0,0.00019829,2]
[368723319,1751326254683,-460.0,0.00019829,2]
[368723320,1751326254693,-460.0,0.00019831,2]
[368723321,1751326254702,-460.0,0.00019831,2]
[368723322,1751326254712,-460.0,0.00019831,2]
[368723323,1751326254721,-460.0,0.00019831,2]
[368723324,1751326254731,-876.76,0.00019831,2]
[368723325,1751326254745,-487.77,0.00019831,2]
[368723326,1751326254755,-460.0,0.00019831,2]
[368723327,1751326254764,-460.0,0.00019831,2]
[368723328,1751326254774,-469.42,0.00019831,2]
[368723329,1751326254784,-460.0,0.00019831,2]
[368723330,1751326254794,-460.0,0.00019831,2]
[368723331,1751326254804,-1013.34,0.00019831,2]
[368723332,1751326254814,-460.0,0.00019831,2]
[368723333,1751326254824,-460.0,0.00019831,2]
[368723334,1751326254835,-591.63,0.00019832,2]
[368723335,1751326254845,-460.0,0.00019832,2]
[368723336,1751326254855,-797.26,0.00019832,2]
[368723337,1751326254864,-500.0,0.00019844,2]
[368723338,1751326254874,-500.0,0.00019871,2]
[368723339,1751326254885,-500.0,0.00019899,2]
[368723340,1751326254895,-500.0,0.00019926,2]
[368723341,1751326254904,-206.72,0.00019932,2]
[368723342,1751326254915,-460.0,0.00019932,2]
[368723343,1751326254925,-460.0,0.00019932,2]
[368723344,1751326254934,-460.0,0.00019932,2]
[368723345,1751326254943,-460.0,0.00019932,2]
[368723346,1751326254953,-460.0,0.00019932,2]
[368723347,1751326254963,-460.0,0.00019932,2]
[368723348,1751326254972,-460.0,0.00019932,2]
[368723349,1751326254984,-212.4,0.00019932,2]
[368723350,1751326254994,-460.0,0.00019932,2]
[368723351,1751326255004,-553.4,0.00019932,2]
[368723352,1751326255013,-469.32,0.00019932,2]
[368723353,1751326255023,-1846.9776302,0.00019934,2]
[368723354,1751326255032,-500.0,0.00019953,2]
[368723355,1751326255168,-500.0,0.00019981,2]
[368723356,1751326255178,-500.0,0.00020008,2]
[368723357,1751326255188,-307.92,0.0002003,2]
[368723358,1751326255198,-460.0,0.00020032,2]
[368723359,1751326255207,-273.44,0.00020032,2]
[368723360,1751326255217,-322.17683741,0.00020032,2]
[368723361,1751326255227,-395.24,0.00020032,2]
[368723362,1751326255236,-387.02090011,0.00020032,2]
[368723363,1751326255246,-446.32874295,0.00020032,2]
[368723364,1751326255256,-500.0,0.00020036,2]
[368723365,1751326255266,-500.0,0.00020063,2]
[368723366,1751326255275,-460.0,0.00020068,2]
[368723367,1751326255285,-501.04,0.00020068,2]
[368723368,1751326255295,-656.0,0.00020068,2]
[368723369,1751326255305,-1368.03,0.00020068,2]
[368723370,1751326255315,-460.0,0.00020068,2]
[368723371,1751326255324,-460.0,0.00020068,2]
[368723372,1751326255334,-460.0,0.00020068,2]
[368723373,1751326255344,-460.0,0.00020068,2]
[368723374,1751326255354,-460.0,0.00020068,2]
[368723375,1751326255363,-460.0,0.00020068,2]
[368723376,1751326255374,-460.0,0.00020068,2]
[368723377,1751326255383,-460.0,0.00020068,2]
[368723378,1751326255393,-460.0,0.00020068,2]
[368723379,1751326255403,-460.0,0.00020068,2]
[368723380,1751326255412,-460.0,0.00020068,2]
[368723381,1751326255422,-500.0,0.0002009,2]
[368723382,1751326255432,-460.0,0.00020103,2]
[368723383,1751326255442,-914.71,0.00020103,2]
[368723384,1751326255452,-460.0,0.00020103,2]
[368723385,1751326255462,-460.0,0.00020103,2]
[368723386,1751326255471,-564.55858305,0.00020103,2]
[368723387,1751326255482,-337.3,0.00020103,2]
[368723388,1751326255491,-460.0,0.00020103,2]
[368723389,1751326255502,-460.0,0.00020103,2]
[368723390,1751326255511,-460.0,0.00020103,2]
[368723391,1751326255522,-460.0,0.00020103,2]
[368723392,1751326255531,-460.0,0.00020103,2]
[368723393,1751326255541,-233.49,0.00020105,2]
[368723394,1751326255550,-460.0,0.00020105,2]
[368723395,1751326255560,-460.0,0.00020105,2]
[368723396,1751326255570,-460.0,0.00020105,2]
[368723397,1751326255580,-460.0,0.00020105,2]
[368723398,1751326255589,-876.76,0.00020105,2]
[368723399,1751326255599,-487.77,0.00020105,2]
[368723400,1751326255608,-460.0,0.00020105,2]
[368723401,1751326255618,-460.0,0.00020105,2]
[368723402,1751326255628,-469.42,0.00020105,2]
[368723403,1751326255638,-460.0,0.00020105,2]
[368723404,1751326255649,-460.0,0.00020105,2]
[368723405,1751326255658,-1013.34,0.00020105,2]
[368723406,1751326255667,-460.0,0.00020105,2]
[368723407,1751326255677,-460.0,0.00020105,2]
[368723408,1751326255686,-591.63,0.00020106,2]
[368723409,1751326255696,-460.0,0.00020106,2]
[368723410,1751326255705,-797.26,0.00020106,2]
[368723411,1751326255716,-500.0,0.00020118,2]
[368723412,1751326255726,-847.41730813,0.00020132,2]
[368723413,1751326255736,-160.0,0.00020132,2]
[368723414,1751326255746,-160.0,0.00020132,2]
[368723415,1751326255756,-160.0,0.00020132,2]
[368723416,1751326255765,-214.99848635,0.00020132,2]
[368723417,1751326255775,-213.84631524,0.00020132,2]
[368723418,1751326255785,-160.0,0.00020132,2]
[368723419,1751326255795,-160.0,0.00020132,2]
[368723420,1751326255805,-837.16779106,0.00020132,2]
[368723421,1751326255814,-230.31346914,0.00020132,2]
[368723422,1751326255824,-160.0,0.00020132,2]
[368723423,1751326255833,-160.0,0.00020132,2]
[368723424,1751326255842,-1846.9776302,0.00020141,2]
[368723425,1751326255852,-1822.70234672,0.00020143,2]
[368723426,1751326255861,-500.0,0.00020145,2]
[368723427,1751326255871,-160.0,0.00020147,2]
[368723428,1751326255880,-12569.13231816,0.00020148,2]
[368723429,1751326255889,-1500.0,0.00020168,2]
[368723430,1751326255899,-500.0,0.00020173,2]
[368723431,1751326255908,-328.37098,0.00020187,2]
[368723432,1751326255918,-500.0,0.000202,2]
[368723433,1751326255927,-460.0,0.00020206,2]
[368723434,1751326255936,-460.0,0.00020206,2]
[368723435,1751326255946,-460.0,0.00020206,2]
[368723436,1751326255955,-460.0,0.00020206,2]
[368723437,1751326255965,-460.0,0.00020206,2]
[368723438,1751326255975,-258.24,0.00020206,2]
[368723439,1751326255987,-175.74,0.00020206,2]
[368723440,1751326255997,-500.0,0.00020227,2]
[368723441,1751326256006,-500.0,0.00020255,2]
[368723442,1751326256015,-500.0,0.00020282,2]
[368723443,1751326256026,-460.0,0.00020306,2]
[368723444,1751326256035,-362.02510962,0.0002031,2]
[368723445,1751326256044,-485.0,0.00020327,2]
[368723446,1751326256055,-460.0,0.00020342,2]
[368723447,1751326256064,-501.04,0.00020342,2]
[368723448,1751326256074,-656.0,0.00020342,2]
[368723449,1751326256084,-1368.03,0.00020342,2]
[368723450,1751326256093,-154.43,0.00020342,2]
[368723451,1751326256102,-460.0,0.00020342,2]
[368723452,1751326256112,-460.0,0.00020342,2]
[368723453,1751326256121,-460.0,0.00020342,2]
[368723454,1751326256130,-460.0,0.00020342,2]
[368723455,1751326256140,-460.0,0.00020342,2]
[368723456,1751326256149,-460.0,0.00020342,2]
[368723457,1751326256158,-460.0,0.00020342,2]
[368723458,1751326256168,-460.0,0.00020342,2]
[368723459,1751326256177,-460.0,0.00020342,2]
[368723460,1751326256186,-460.0,0.00020342,2]
[368723461,1751326256195,-1846.9776302,0.00020348,3]
[368723462,1751326256206,-717.06,0.0002037,3]
[368723463,1751326256217,-358.54,0.0002037,3]
[368723464,1751326256228,-460.0,0.00020377,2]
[368723465,1751326256239,-914.71,0.00020377,2]
[368723466,1751326256248,-460.0,0.00020377,2]
[368723467,1751326256257,-460.0,0.00020377,2]
[368723468,1751326256267,-582.52,0.00020377,2]
[368723469,1751326256276,-460.0,0.00020377,2]
[368723470,1751326256286,-193.65280015,0.00020377,2]
[368723471,1751326256295,-164.33,0.00020377,2]
[368723472,1751326256305,-460.0,0.00020377,2]
[368723473,1751326256315,-460.0,0.00020379,2]
[368723474,1751326256325,-460.0,0.00020379,2]
[368723475,1751326256334,-460.0,0.00020379,2]
[368723476,1751326256344,-460.0,0.00020379,2]
[368723477,1751326256353,-876.76,0.00020379,2]
[368723478,1751326256363,-487.77,0.00020379,2]
[368723479,1751326256373,-460.0,0.00020379,2]
[368723480,1751326256382,-460.0,0.00020379,2]
[368723481,1751326256392,-469.42,0.00020379,2]
[368723482,1751326256401,-460.0,0.00020379,2]
[368723483,1751326256411,-460.0,0.00020379,2]
[368723484,1751326256421,-1013.34,0.00020379,2]
[368723485,1751326256430,-460.0,0.00020379,2]
[368723486,1751326256439,-460.0,0.00020379,2]
[368723487,1751326256449,-168.0,0.00020379,2]
[368723488,1751326256459,-591.63,0.0002038,2]
[368723489,1751326256468,-460.0,0.0002038,2]
[368723490,1751326256478,-797.26,0.0002038,2]
[368723491,1751326256487,-460.0,0.0002048,2]
[368723492,1751326256496,-460.0,0.0002048,2]
[368723493,1751326256506,-460.0,0.0002048,2]
[368723494,1751326256516,-460.0,0.0002048,2]
[368723495,1751326256525,-389.38632599,0.0002048,2]
[368723496,1751326256535,-346.877,0.00020492,2]
[368723497,1751326256544,-168.0,0.00020496,2]
[368723498,1751326256554,-151.0,0.000205,4]
[368723499,1751326256564,-500.0,0.00020547,14]
[368723500,1751326256575,-1822.70234672,0.00020554,2]
[368723501,1751326256584,-1846.9776302,0.00020555,3]
[368723502,1751326256594,-485.0,0.00020568,2]
[368723503,1751326256605,-460.0,0.0002058,2]
[368723504,1751326256614,-2000.0,0.00020588,2]
[368723505,1751326256624,-719.21559496,0.00020591,2]
[368723506,1751326256633,-2811.08,0.000206,2]
[368723507,1751326256643,-485.0,0.00020605,2]
[368723508,1751326256652,-460.0,0.00020616,2]
[368723509,1751326256662,-501.04,0.00020616,2]
[368723510,1751326256672,-656.0,0.00020616,2]
[368723511,1751326256682,-1368.03,0.00020616,2]
[368723512,1751326256692,-460.0,0.00020616,2]
[368723513,1751326256702,-460.0,0.00020616,2]
[368723514,1751326256711,-460.0,0.00020616,2]
[368723515,1751326256721,-460.0,0.00020616,2]
[368723516,1751326256731,-460.0,0.00020616,2]
[368723517,1751326256741,-460.0,0.00020616,2]
[368723518,1751326256750,-460.0,0.00020616,2]
[368723519,1751326256759,-460.0,0.00020616,2]
[368723520,1751326256768,-460.0,0.00020616,2]
[368723521,1751326256778,-460.0,0.00020616,2]
[368723522,1751326256787,-460.0,0.00020651,2]
[368723523,1751326256796,-914.71,0.00020651,2]
[368723524,1751326256805,-255.28,0.00020651,2]
[368723525,1751326256815,-322.64,0.00020651,2]
[368723526,1751326256824,-460.0,0.00020651,2]
[368723527,1751326256834,-460.0,0.00020651,2]
[368723528,1751326256844,-460.0,0.00020653,2]
[368723529,1751326256854,-460.0,0.00020653,2]
[368723530,1751326256863,-460.0,0.00020653,2]
[368723531,1751326256873,-460.0,0.00020653,2]
[368723532,1751326256882,-876.76,0.00020653,2]
[368723533,1751326256894,-487.77,0.00020653,2]
[368723534,1751326256903,-460.0,0.00020653,2]
[368723535,1751326256913,-460.0,0.00020653,2]
[368723536,1751326256922,-469.42,0.00020653,2]
[368723537,1751326256931,-460.0,0.00020653,2]
[368723538,1751326256941,-460.0,0.00020653,2]
[368723539,1751326256951,-1013.34,0.00020653,2]
[368723540,1751326256960,-460.0,0.00020653,2]
[368723541,1751326256970,-460.0,0.00020653,2]
[368723542,1751326256981,-591.63,0.00020654,2]
[368723543,1751326256993,-460.0,0.00020654,2]
[368723544,1751326257003,-797.26,0.00020654,2]
[368723545,1751326257013,-485.0,0.00020657,2]
[368723546,1751326257023,-500.0,0.00020663,2]
[368723547,1751326257032,-500.0,0.00020663,2]
[368723548,1751326257042,-521.29076982,0.00020663,2]
[368723549,1751326257051,-420.0,0.00020679,2]
[368723550,1751326257064,-4000.0,0.00020686,2]
[368723551,1751326257076,-151.0,0.000207,4]
[368723552,1751326257085,-394.47562695,0.00020716,2]
[368723553,1751326257094,-460.0,0.00020754,2]
[368723554,1751326257104,-410.6,0.00020754,2]
[368723555,1751326257113,-460.0,0.00020754,2]
[368723556,1751326257124,-460.0,0.00020754,2]
[368723557,1751326257133,-1846.9776302,0.00020762,3]
[368723558,1751326257142,-460.0,0.00020854,2]
[368723559,1751326257151,-351.0,0.0002087,2]
[368723560,1751326257161,-207.4,0.0002088,2]
[368723561,1751326257171,-5000.0,0.0002088,2]
[368723562,1751326257180,-500.0,0.0002088,2]
[368723563,1751326257189,-690.642,0.0002088,2]
[368723564,1751326257199,-931.80713625,0.0002088,2]
[368723565,1751326257210,-500.0,0.0002088,2]
[368723566,1751326257220,-500.0,0.0002088,2]
[368723567,1751326257229,-500.0,0.0002088,2]
[368723568,1751326257239,-465.60752438,0.0002088,2]
[368723569,1751326257248,-500.0,0.0002088,2]
[368723570,1751326257258,-500.0,0.0002088,2]
[368723571,1751326257267,-500.0,0.0002088,2]
[368723572,1751326257277,-500.0,0.0002088,2]
[368723573,1751326257286,-500.0,0.0002088,2]
[368723574,1751326257295,-500.0,0.0002088,2]
[368723575,1751326257305,-500.0,0.0002088,2]
[368723576,1751326257315,-500.0,0.0002088,2]
[368723577,1751326257325,-500.0,0.0002088,2]
[368723578,1751326257335,-500.0,0.0002088,2]
[368723579,1751326257438,-151.0,0.0002088,2]
[368723580,1751326257448,-500.0,0.0002088,2]
[368723581,1751326257459,-500.0,0.0002088,2]
[368723582,1751326257468,-500.0,0.0002088,2]
[368723583,1751326257478,-500.0,0.0002088,2]
[368723584,1751326257488,-500.0,0.0002088,2]
[368723585,1751326257498,-500.0,0.0002088,2]
[368723586,1751326257508,-25000.0,0.0002088,2]
[368723587,1751326257517,-23221.87729931,0.0002088,2]
[368723588,1751326257528,-460.0,0.0002089,2]
[368723589,1751326257537,-501.04,0.0002089,2]
[368723590,1751326257547,-656.0,0.0002089,2]
[368723591,1751326257557,-1368.03,0.0002089,2]
[368723592,1751326257567,-460.0,0.0002089,2]
[368723593,1751326257578,-460.0,0.0002089,2]
[368723594,1751326257587,-460.0,0.0002089,2]
[368723595,1751326257597,-460.0,0.0002089,2]
[368723596,1751326257607,-460.0,0.0002089,2]
[368723597,1751326257618,-460.0,0.0002089,2]
[368723598,1751326257627,-434.47,0.0002089,2]
[368723599,1751326257637,-460.0,0.0002089,2]
[368723600,1751326257647,-460.0,0.0002089,2]
[368723601,1751326257657,-580.64104003,0.0002089,2]
[368723602,1751326257666,-460.0,0.00020925,2]
[368723603,1751326257676,-914.71,0.00020925,2]
[368723604,1751326257685,-460.0,0.00020925,2]
[368723605,1751326257695,-460.0,0.00020925,2]
[368723606,1751326257706,-400.0,0.00020927,2]
[368723607,1751326257716,-460.0,0.00020927,2]
[368723608,1751326257725,-460.0,0.00020927,2]
[368723609,1751326257734,-549.1753056,0.00020927,2]
[368723610,1751326257744,-876.76,0.00020927,2]
[368723611,1751326257753,-487.77,0.00020927,2]
[368723612,1751326257763,-460.0,0.00020927,2]
[368723613,1751326257772,-460.0,0.00020927,2]
[368723614,1751326257781,-469.42,0.00020927,2]
[368723615,1751326257791,-460.0,0.00020927,2]
[368723616,1751326257801,-460.0,0.00020927,2]
[368723617,1751326257810,-1013.34,0.00020927,2]
[368723618,1751326257819,-460.0,0.00020927,2]
[368723619,1751326257828,-460.0,0.00020927,2]
[368723620,1751326257838,-591.63,0.00020928,2]
[368723621,1751326257849,-460.0,0.00020928,2]
[368723622,1751326257859,-797.26,0.00020928,2]
[368723623,1751326257868,-716.195754,0.00020935,2]
[368723624,1751326257878,-1846.9776302,0.00020969,4]
[368723625,1751326257887,-742.6949969,0.0002099,2]
[368723626,1751326257897,-151.0,0.00021,3]
[368723627,1751326257907,-10000.0,0.00021,5]
[368723628,1751326257916,-192.38,0.00021028,2]
[368723629,1751326257925,-413.15494551,0.00021028,2]
[368723630,1751326257934,-393.74142813,0.00021028,2]
[368723631,1751326257944,-770.17471178,0.00021045,2]
[368723632,1751326257954,-485.0,0.00021075,2]
[368723633,1751326257963,-798.67117612,0.000211,2]
[368723634,1751326257973,-460.0,0.00021128,2]
[368723635,1751326257984,-828.22200964,0.00021155,2]
[368723636,1751326257995,-460.0,0.00021164,2]
[368723637,1751326258005,-501.04,0.00021164,2]
[368723638,1751326258014,-656.0,0.00021164,2]
[368723639,1751326258025,-1368.03,0.00021164,2]
[368723640,1751326258034,-460.0,0.00021164,2]
[368723641,1751326258044,-460.0,0.00021164,2]
[368723642,1751326258053,-460.0,0.00021164,2]
[368723643,1751326258063,-460.0,0.00021164,2]
[368723644,1751326258072,-460.0,0.00021164,2]
[368723645,1751326258082,-460.0,0.00021164,2]
[368723646,1751326258091,-460.0,0.00021164,2]
[368723647,1751326258101,-460.0,0.00021164,2]
[368723648,1751326258110,-1846.9776302,0.00021176,4]
[368723649,1751326258120,-460.0,0.00021199,2]
[368723650,1751326258129,-914.71,0.00021199,2]
[368723651,1751326258139,-460.0,0.00021199,2]
[368723652,1751326258148,-196.31,0.00021199,2]